fUSD/lending_fUSD_20251211
["ID","MTS","AMOUNT","RATE_DAILY","PERIOD"]
[398164184,1765413043660,-500.0,0.00032877,7]
[398164185,1765413043669,-500.0,0.00032877,7]
[398164186,1765413043678,-452.6731888,0.00032877,7]
[398164187,1765413043688,-500.0,0.00032877,7]
[398164188,1765413043697,-500.0,0.00032877,7]
[398164189,1765413043706,-500.0,0.00032877,7]
[398164190,1765413043716,-500.0,0.00032877,7]
[398164191,1765413043726,-500.0,0.00032877,7]
[398164192,1765413043736,-500.0,0.00032877,7]
[398164193,1765413043745,-160.15,0.000329,14]
[398164194,1765413043755,-211.28654985,0.00033291,10]
[398164195,1765413043765,-193.1,0.000333,14]
[398164196,1765413043774,-4102.52150678,0.00033799,7]
[398164197,1765413043783,-152.42847996,0.00035,4]
[398164198,1765413043792,-1180.88,0.00035616,2]
[398164199,1765413043802,-1180.88,0.00035616,2]
[398164200,1765413043812,-1180.88,0.00035616,2]
[398164201,1765413043821,-1180.88,0.00035616,2]
[398164202,1765413043831,-1180.88,0.00035616,2]
[398164203,1765413043840,-1180.88,0.00035616,2]
[398164204,1765413043850,-1180.88,0.00035616,2]
[398164205,1765413043859,-1180.88,0.00035616,2]
[398164206,1765413043869,-1180.88,0.00035616,2]
[398164207,1765413043879,-1180.88,0.00035616,2]
[398164208,1765413043889,-1180.88,0.00035616,2]
[398164209,1765413043899,-1180.88,0.00035616,2]
[398164210,1765413043908,-1180.88,0.00035616,2]
[398164211,1765413043917,-1180.88,0.00035616,2]
[398164212,1765413043932,-1180.88,0.00035616,2]
[398164213,1765413043941,-1180.88,0.00035616,2]
[398164214,1765413043951,-1180.88,0.00035616,2]
[398164215,1765413043961,-1180.88,0.00035616,2]
[398164216,1765413043970,-1180.88,0.00035616,2]
[398164217,1765413043980,-1180.88,0.00035616,2]
[398164218,1765413043989,-1180.88,0.00035616,2]
[398164219,1765413043999,-1180.88,0.00035616,2]
[398164220,1765413044009,-1180.88,0.00035616,2]
[398164221,1765413044018,-1181.06596353,0.00035616,2]
[398164222,1765413044028,-150.99,0.00035946,2]
[398164223,1765413044038,-19999.99,0.00036058,2]
[398164224,1765413044047,-300.0,0.00036067,2]
[398164225,1765413044057,-4450.91,0.00036089,2]
[398164226,1765413044067,-423.31,0.00036089,15]
[398164227,1765413044076,-432.64,0.00036089,2]
[398164228,1765413044085,-499.99,0.00036089,2]
[398164229,1765413044094,-5034.97,0.00036089,2]
[398164230,1765413044104,-9999.99,0.00036089,2]
[398164231,1765413044113,-150.99,0.00036089,30]
[398164232,1765413044123,-500.0,0.00036254,30]
[398164233,1765413044133,-150.00000001,0.0003743,7]
[398164234,1765413044142,-150.0,0.0003743,7]
[398164235,1765413044151,-150.0,0.0003743,7]
[398164236,1765413044161,-150.0,0.0003743,7]
[398164237,1765413044170,-150.0,0.0003743,7]
[398164238,1765413044179,-150.0,0.0003743,7]
[398164239,1765413044188,-150.0,0.0003743,7]
[398164240,1765413044199,-150.0,0.0003743,7]
[398164241,1765413044209,-150.0,0.0003743,7]
[398164242,1765413044219,-150.0,0.0003743,7]
[398164243,1765413044330,-150.0,0.0003743,7]
[398164244,1765413044340,-150.0,0.0003743,7]
[398164245,1765413044350,-265.20920523,0.0003743,7]
[398164246,1765413044361,-150.0,0.0003743,7]
[398164247,1765413044371,-150.0,0.0003743,7]
[398164248,1765413044381,-150.0,0.0003743,7]
[398164249,1765413044391,-150.0,0.0003743,7]
[398164250,1765413044400,-191.51206096,0.0003743,7]
[398164251,1765413044411,-311.1,0.00037436,2]
[398164252,1765413044422,-150.0,0.00037486,7]
[398164253,1765413044432,-150.0,0.00037529,7]
[398164254,1765413044441,-150.0,0.00037532,7]
[398164255,1765413044452,-150.0,0.00037534,7]
[398164256,1765413044463,-150.0,0.00037541,7]
[398164257,1765413044473,-150.0,0.00037556,7]
[398164258,1765413044483,-150.0,0.00037564,7]
[398164259,1765413044492,-150.0,0.00037596,7]
[398164260,1765413044504,-150.0,0.00037619,7]
[398164261,1765413044514,-150.0,0.00037628,7]
[398164262,1765413044525,-150.0,0.00037633,7]
[398164263,1765413044535,-150.0,0.00037638,7]
[398164264,1765413044545,-150.0,0.00037649,7]
[398164265,1765413044554,-150.0,0.00037652,7]
[398164266,1765413044564,-150.0,0.00037682,7]
[398164267,1765413044573,-150.0,0.00037698,7]
[398164268,1765413044583,-150.0,0.00037707,7]
[398164269,1765413044592,-150.0,0.00037727,7]
[398164270,1765413044601,-150.0,0.00037734,7]
[398164271,1765413044612,-150.0,0.00037742,7]
[398164272,1765413044621,-150.0,0.00037763,7]
[398164273,1765413044630,-150.0,0.00037777,7]
[398164274,1765413044640,-1116.44,0.000378,30]
[398164275,1765413044649,-2594.91,0.000378,14]
[398164276,1765413044659,-150.0,0.00037808,7]
[398164277,1765413044668,-150.0,0.00037808,7]
[398164278,1765413044678,-150.0,0.00037808,7]
[398164279,1765413044688,-150.0,0.00037818,7]
[398164280,1765413044697,-150.0,0.00037826,7]
[398164281,1765413044707,-150.0,0.00037833,7]
[398164282,1765413044716,-150.0,0.00037836,7]
[398164283,1765413044726,-150.0,0.00037846,7]
[398164284,1765413044736,-150.0,0.00037868,7]
[398164285,1765413044747,-150.0,0.00037874,7]
[398164286,1765413044757,-150.0,0.00037892,7]
[398164287,1765413044766,-156.7335532,0.00037908,7]
[398164288,1765413044775,-150.0,0.00037925,7]
[398164289,1765413044784,-150.0,0.00037929,7]
[398164290,1765413044794,-150.0,0.00037934,7]
[398164291,1765413044803,-150.0,0.00037937,7]
[398164292,1765413044812,-150.0,0.0003795,7]
[398164293,1765413044822,-150.0,0.00037967,7]
[398164294,1765413044831,-150.0,0.00037985,7]
[398164295,1765413044840,-150.0,0.00037997,7]
[398164296,1765413044851,-150.0,0.00038024,7]
[398164297,1765413044861,-150.0,0.00038039,7]
[398164298,1765413044871,-150.0,0.0003804,7]
[398164299,1765413044882,-150.0,0.00038054,7]
[398164300,1765413044891,-150.0,0.0003806,7]
[398164301,1765413044901,-150.0,0.00038087,7]
[398164302,1765413044910,-150.0,0.00038096,7]
[398164303,1765413044921,-150.0,0.00038101,7]
[398164304,1765413044933,-150.0,0.00038123,7]
[398164305,1765413044942,-150.0,0.00038123,7]
[398164306,1765413044951,-150.0,0.00038123,7]
[398164307,1765413044963,-192.99,0.00038124,2]
[398164308,1765413044972,-150.0,0.0003814,7]
[398164309,1765413044981,-150.0,0.00038151,7]
[398164310,1765413044992,-150.0,0.00038158,7]
[398164311,1765413045004,-150.0,0.00038186,7]
[398164312,1765413045013,-150.0,0.00038186,7]
[398164313,1765413045023,-150.0,0.00038186,7]
[398164314,1765413045033,-193.1,0.000382,14]
[398164315,1765413045043,-150.0,0.00038206,7]
[398164316,1765413045053,-150.0,0.00038222,7]
[398164317,1765413045062,-150.0,0.00038235,7]
[398164318,1765413045072,-150.0,0.00038242,7]
[398164319,1765413045081,-150.0,0.00038262,7]
[398164320,1765413045091,-150.0,0.00038262,7]
[398164321,1765413045100,-9999.99,0.00038271,2]
[398164322,1765413045109,-150.0,0.00038306,7]
[398164323,1765413045119,-150.0,0.00038312,7]
[398164324,1765413045129,-150.0,0.00038317,7]
[398164325,1765413045139,-204.03,0.00038321,14]
[398164326,1765413045150,-150.0,0.00038321,7]
[398164327,1765413045159,-150.0,0.00038343,7]
[398164328,1765413045169,-150.0,0.00038354,7]
[398164329,1765413045179,-150.0,0.00038366,7]
[398164330,1765413045188,-150.0,0.00038369,7]
[398164331,1765413045198,-150.0,0.00038373,7]
[398164332,1765413045208,-150.0,0.00038375,7]
[398164333,1765413045218,-150.0,0.0003842,7]
[398164334,1765413045228,-150.0,0.00038428,7]
[398164335,1765413045238,-150.0,0.00038438,7]
[398164336,1765413045249,-150.0,0.00038445,7]
[398164337,1765413045258,-150.0,0.0003847,7]
[398164338,1765413045268,-150.0,0.0003847,7]
[398164339,1765413045278,-150.0,0.00038484,7]
[398164340,1765413045289,-150.0,0.00038503,7]
[398164341,1765413045298,-150.0,0.00038519,7]
[398164342,1765413045308,-150.0,0.00038525,7]
[398164343,1765413045318,-150.0,0.00038539,7]
[398164344,1765413045329,-150.0,0.00038546,7]
[398164345,1765413045340,-150.0,0.00038564,7]
[398164346,1765413045350,-150.0,0.00038564,7]
[398164347,1765413045360,-150.0,0.00038564,7]
[398164348,1765413045370,-150.0,0.00038574,7]
[398164349,1765413045380,-150.0,0.00038595,7]
[398164350,1765413045391,-150.0,0.00038618,7]
[398164351,1765413045400,-150.0,0.00038638,7]
[398164352,1765413045410,-150.0,0.00038647,7]
[398164353,1765413045419,-150.0,0.0003865,7]
[398164354,1765413045428,-150.0,0.00038678,7]
[398164355,1765413045439,-150.0,0.0003869,7]
[398164356,1765413045449,-500.0,0.000387,120]
[398164357,1765413045458,-500.0,0.000387,120]
[398164358,1765413045468,-500.0,0.000387,120]
[398164359,1765413045479,-500.0,0.000387,120]
[398164360,1765413045488,-500.0,0.000387,120]
[398164361,1765413045499,-150.0,0.00038706,7]
[398164362,1765413045509,-204.03,0.00038711,14]
[398164363,1765413045519,-192.99,0.00038716,2]
[398164364,1765413045529,-150.0,0.00038717,7]
[398164365,1765413045538,-150.0,0.00038743,7]
[398164366,1765413045548,-150.0,0.00038749,7]
[398164367,1765413045558,-150.0,0.00038753,7]
[398164368,1765413045568,-150.0,0.00038761,7]
[398164369,1765413045577,-150.58,0.00038765,2]
[398164370,1765413045586,-150.0,0.00038772,7]
[398164371,1765413045595,-150.0,0.00038782,7]
[398164372,1765413045612,-151.0,0.00038797,14]
[398164373,1765413045622,-151.0,0.00038797,14]
[398164374,1765413045633,-300.0,0.00038799,10]
[398164375,1765413045648,-300.0,0.00038799,10]
[398164376,1765413045661,-300.0,0.00038799,10]
[398164377,1765413045671,-300.0,0.00038799,10]
[398164378,1765413045680,-300.0,0.00038799,10]
[398164380,1765413045690,-1180264.99177406,0.000388,7]
[398164381,1765413045699,-151.0,0.000388,120]
[398164382,1765413045708,-151.0,0.000388,120]
[398164383,1765413045718,-151.0,0.000388,120]
[398164384,1765413045727,-151.0,0.000388,120]
[398164385,1765413045736,-151.0,0.000388,120]
[398164386,1765413045746,-151.0,0.000388,120]
[398164387,1765413045755,-151.0,0.000388,120]
[398164388,1765413045764,-191.393216,0.000388,120]
[398164389,1765413045774,-151.0,0.000388,120]
[398164390,1765413045784,-268.021028,0.000388,120]
[398164392,1765413045793,-322.6107,0.00038805,2]
[398164393,1765413045803,-150.0,0.00038816,7]
[398164394,1765413045814,-150.0,0.00038816,7]
[398164395,1765413045823,-150.0,0.00038816,7]
[398164396,1765413045833,-150.0,0.00038816,7]
[398164397,1765413045842,-150.0,0.00038816,7]
[398164398,1765413045851,-150.0,0.00038816,7]
[398164399,1765413045860,-150.0,0.00038816,7]
[398164400,1765413045869,-150.0,0.0003885,7]
[398164401,1765413045878,-150.0,0.00038872,7]
[398164402,1765413045888,-150.0,0.00038886,7]
[398164403,1765413045898,-150.0,0.00038906,7]
[398164404,1765413045908,-150.0,0.00038915,7]
[398164405,1765413045918,-150.0,0.00038927,7]
[398164406,1765413045931,-150.0,0.00038942,7]
[398164407,1765413045941,-150.0,0.00038942,7]
[398164408,1765413045950,-150.0,0.00038942,7]
[398164409,1765413045960,-150.0,0.00038952,7]
[398164410,1765413045970,-150.0,0.00038962,7]
[398164411,1765413045980,-150.0,0.00038983,7]
[398164412,1765413045989,-150.0,0.0003899,7]
[398164413,1765413046000,-1116.44,0.00039,30]
[398164414,1765413046010,-150.0,0.00039014,7]
[398164415,1765413046020,-150.0,0.00039038,7]
[398164416,1765413046030,-150.0,0.0003904,7]
[398164417,1765413046040,-150.0,0.00039053,7]
[398164418,1765413046049,-6515.0,0.00039065,2]
[398164419,1765413046059,-563.0,0.00039065,2]
[398164420,1765413046068,-150.0,0.00039068,7]
[398164421,1765413046081,-3371.79,0.0003909,2]
[398164422,1765413046092,-150.0,0.00039094,7]
[398164423,1765413046102,-150.0,0.00039094,7]
[398164424,1765413046111,-150.0,0.00039114,7]
[398164425,1765413046121,-150.0,0.00039132,7]
[398164426,1765413046131,-150.0,0.00039149,7]
[398164427,1765413046141,-150.0,0.00039155,7]
[398164428,1765413046151,-204.03,0.00039155,14]
[398164429,1765413046160,-150.0,0.00039163,7]
[398164430,1765413046171,-150.0,0.00039174,7]
[398164431,1765413046180,-150.0,0.00039181,7]
[398164432,1765413046190,-150.0,0.00039195,7]
[398164433,1765413046203,-150.0,0.00039198,7]
[398164434,1765413046212,-150.0,0.00039205,7]
[398164436,1765413046222,-150.0,0.00039213,7]
[398164438,1765413046232,-150.0,0.00039256,7]
[398164440,1765413046241,-150.0,0.0003926,7]
[398164442,1765413046250,-150.0,0.00039279,7]
[398164444,1765413046260,-150.0,0.00039302,7]
[398164446,1765413046270,-150.0,0.00039308,7]
[398164448,1765413046280,-150.0,0.00039312,7]
[398164450,1765413046290,-150.0,0.00039316,7]
[398164451,1765413046300,-150.0,0.00039321,7]
[398164453,1765413046310,-150.0,0.00039321,7]
[398164454,1765413046321,-150.0,0.00039321,7]
[398164455,1765413046330,-4469.0,0.00039336,120]
[398164456,1765413046340,-150.0,0.00039357,7]
[398164457,1765413046350,-150.0,0.00039371,7]
[398164458,1765413046360,-150.0,0.000394,7]
[398164460,1765413046370,-300.0,0.00039403,10]
[398164461,1765413046380,-300.0,0.00039403,10]
[398164462,1765413046390,-300.0,0.00039403,10]
[398164463,1765413046399,-300.0,0.00039403,10]
[398164464,1765413046410,-150.0,0.00039406,7]
[398164465,1765413046421,-150.0,0.00039411,7]
[398164466,1765413046432,-150.0,0.00039426,7]
[398164467,1765413046442,-8371.91,0.0003943,2]
[398164468,1765413046452,-1034.87000802,0.00039442,30]
[398164469,1765413046463,-150.0,0.00039443,7]
[398164470,1765413046473,-150.0,0.00039447,7]
[398164471,1765413046482,-257.31,0.00039454,2]
[398164472,1765413046492,-150.0,0.00039459,7]
[398164473,1765413046503,-150.0,0.00039482,7]
[398164474,1765413046513,-2094.99643353,0.000395,60]
[398164475,1765413046522,-150.0,0.0003951,7]
[398164476,1765413046532,-150.0,0.0003951,7]
[398164477,1765413046644,-150.0,0.0003951,7]
[398164478,1765413046656,-150.0,0.0003951,7]
[398164479,1765413046666,-150.0,0.0003951,7]
[398164480,1765413046675,-150.0,0.0003951,7]
[398164481,1765413046684,-150.0,0.00039537,7]
[398164482,1765413046694,-4469.0,0.00039547,2]
[398164483,1765413046703,-150.0,0.0003956,7]
[398164484,1765413046712,-150.0,0.00039573,7]
[398164485,1765413046722,-150.0,0.00039577,7]
[398164486,1765413046732,-150.0,0.00039593,7]
[398164487,1765413046741,-193.1,0.000396,14]
[398164488,1765413046750,-150.0,0.00039609,7]
[398164489,1765413046761,-150.0,0.00039614,7]
[398164490,1765413046770,-150.0,0.00039619,7]
[398164491,1765413046781,-150.0,0.00039648,7]
[398164492,1765413046790,-150.0,0.00039662,7]
[398164493,1765413046799,-150.0,0.00039699,7]
[398164494,1765413046809,-150.0,0.00039699,7]
[398164495,1765413046819,-150.0,0.00039699,7]
[398164496,1765413046830,-150.0,0.00039704,7]
[398164497,1765413046840,-150.0,0.00039708,7]
[398164498,1765413046850,-150.0,0.00039711,7]
[398164499,1765413046861,-150.0,0.00039718,7]
[398164500,1765413046870,-150.0,0.00039741,7]
[398164501,1765413046880,-150.0,0.00039759,7]
[398164502,1765413046889,-150.0,0.00039763,7]
[398164503,1765413046898,-3202.16,0.00039764,2]
[398164504,1765413046908,-150.0,0.00039807,7]
[398164505,1765413046918,-150.0,0.00039815,7]
[398164506,1765413046930,-150.0,0.00039822,7]
[398164507,1765413046940,-150.0,0.00039825,7]
[398164508,1765413046949,-150.0,0.00039838,7]
[398164509,1765413046959,-150.0,0.00039845,7]
[398164510,1765413046970,-1000.0,0.00039856,120]
[398164511,1765413046980,-150.0,0.00039856,7]
[398164512,1765413046991,-150.0,0.00039865,7]
[398164513,1765413047003,-150.0,0.0003987,7]
[398164514,1765413047012,-150.0,0.00039888,7]
[398164515,1765413047023,-22963.96981738,0.000399,120]
[398164516,1765413047032,-150.0,0.00039906,7]
[398164517,1765413047042,-150.0,0.00039925,7]
[398164518,1765413047052,-150.0,0.00039925,7]
[398164519,1765413047062,-300.0,0.00039933,10]
[398164520,1765413047071,-300.0,0.00039933,10]
[398164521,1765413047081,-300.0,0.00039933,10]
[398164522,1765413047090,-300.0,0.00039933,10]
[398164523,1765413047100,-1213.92,0.00039941,30]
[398164524,1765413047109,-150.0,0.00039951,7]
[398164525,1765413047118,-150.0,0.00039966,7]
[398164526,1765413047127,-151.0,0.00039976,2]
[398164527,1765413047136,-151.0,0.00039976,2]
[398164528,1765413047145,-151.0,0.00039976,2]
[398164529,1765413047155,-151.0,0.00039976,2]
[398164530,1765413047164,-151.0,0.00039976,2]
[398164531,1765413047173,-151.0,0.00039976,2]
[398164532,1765413047183,-151.0,0.00039976,2]
[398164533,1765413047192,-151.0,0.00039976,2]
[398164534,1765413047202,-151.0,0.00039976,2]
[398164535,1765413047211,-151.0,0.00039976,2]
[398164536,1765413047221,-151.0,0.00039976,2]
[398164537,1765413047231,-151.0,0.00039976,2]
[398164538,1765413047241,-231.33551737,0.00039976,2]
[398164539,1765413047250,-150.0,0.00039979,7]
[398164540,1765413047260,-150.0,0.00039981,7]
[398164541,1765413047269,-2679.131,0.00039999,56]
[398164542,1765413047279,-178.048,0.00039999,56]
[398164543,1765413047289,-1500.0,0.0004,2]
[398164544,1765413047299,-1501.98442726,0.0004,2]
[398164545,1765413047309,-301.93,0.0004,30]
[398164546,1765413047320,-30104.79976605,0.0004,3]
[398164547,1765413047330,-8657.79329667,0.0004,30]
[398164548,1765413047340,-2046.28120897,0.0004,120]
[398164549,1765413047350,-1006.6825245,0.0004,120]
[398164550,1765413047360,-4033.86571948,0.0004,100]
[398164551,1765413047370,-502.00415398,0.0004,7]
[398164552,1765413047381,-150.0,0.00040005,7]
[398164553,1765413047391,-150.0,0.00040029,7]
[398164554,1765413047401,-150.0,0.00040036,7]
[398164555,1765413047411,-150.0,0.00040055,30]
[398164556,1765413047420,-1061.62311893,0.00040055,30]
[398164557,1765413047430,-150.0,0.00040055,30]
[398164558,1765413047440,-793.64469677,0.00040055,30]
[398164559,1765413047451,-150.0,0.00040055,30]
[398164560,1765413047462,-1127.0154254,0.00040055,30]
[398164561,1765413047472,-150.0,0.00040055,30]
[398164562,1765413047484,-699.83293664,0.00040055,30]
[398164563,1765413047494,-150.0,0.00040057,7]
[398164564,1765413047504,-150.0,0.00040067,7]
[398164565,1765413047514,-150.0,0.00040077,7]
[398164566,1765413047524,-150.0,0.00040077,7]
[398164567,1765413047534,-150.0,0.00040077,7]
[398164568,1765413047544,-150.0,0.00040092,7]
[398164569,1765413047553,-150.0,0.00040104,7]
[398164570,1765413047563,-150.0,0.00040113,7]
[398164571,1765413047573,-150.0,0.00040133,7]
[398164572,1765413047583,-150.0,0.00040147,7]
[398164573,1765413047592,-150.0,0.00040169,7]
[398164574,1765413047601,-334.5472959,0.00040174,2]
[398164575,1765413047611,-1116.44,0.000402,30]
[398164576,1765413047621,-150.0,0.00040203,7]
[398164577,1765413047630,-150.0,0.00040203,7]
[398164578,1765413047642,-150.0,0.00040203,7]
[398164579,1765413047651,-150.0,0.00040203,7]
[398164580,1765413047661,-150.0,0.00040203,7]
[398164581,1765413047670,-150.0,0.00040203,7]
[398164582,1765413047680,-150.0,0.00040203,7]
[398164583,1765413047690,-500.0,0.00040212,2]
[398164584,1765413047699,-150.0,0.00040237,7]
[398164585,1765413047708,-150.0,0.00040247,7]
[398164586,1765413047718,-1820.0,0.00040252,2]
[398164587,1765413047727,-150.0,0.00040258,7]
[398164588,1765413047736,-150.0,0.00040266,7]
[398164589,1765413047745,-150.0,0.0004027,7]
[398164590,1765413047755,-150.0,0.00040276,7]
[398164591,1765413047764,-150.0,0.00040302,7]
[398164592,1765413047773,-150.0,0.00040314,7]
[398164593,1765413047783,-150.0,0.00040329,7]
[398164594,1765413047792,-150.0,0.00040341,7]
[398164595,1765413047801,-150.0,0.00040369,7]
[398164596,1765413047811,-413.84,0.00040371,14]
[398164597,1765413047819,-150.0,0.00040372,7]
[398164598,1765413047829,-5110.51912999,0.00040373,2]
[398164599,1765413047838,-150.0,0.00040382,7]
[398164600,1765413047848,-150.0,0.00040401,7]
[398164601,1765413047857,-150.0,0.00040425,7]
[398164602,1765413047867,-150.0,0.00040445,7]
[398164603,1765413047876,-150.0,0.00040455,7]
[398164604,1765413047885,-150.0,0.00040455,7]
[398164605,1765413047895,-150.0,0.00040455,7]
[398164606,1765413047904,-3334.60818483,0.0004046,7]
[398164607,1765413047913,-150.0,0.00040473,7]
[398164608,1765413047926,-150.0,0.0004048,7]
[398164609,1765413047935,-150.0,0.00040495,7]
[398164610,1765413047944,-150.0,0.000405,7]
[398164611,1765413047955,-150.0,0.00040516,7]
[398164612,1765413047966,-150.0,0.00040535,7]
[398164613,1765413047975,-150.0,0.00040549,7]
[398164614,1765413047985,-150.0,0.00040549,7]
[398164615,1765413047995,-603.0,0.0004055,120]
[398164616,1765413048005,-205.15,0.00040563,5]
[398164617,1765413048015,-150.0,0.00040575,7]
[398164618,1765413048024,-150.0,0.00040581,7]
[398164619,1765413048034,-150.0,0.00040591,7]
[398164620,1765413048043,-150.0,0.00040599,7]
[398164621,1765413048053,-163.93,0.00040626,2]
[398164622,1765413048063,-150.0,0.00040644,7]
[398164623,1765413048072,-150.0,0.00040646,7]
[398164624,1765413048082,-150.0,0.0004065,7]
[398164625,1765413048092,-150.0,0.00040653,7]
[398164626,1765413048101,-20831.37785219,0.00040656,15]
[398164627,1765413048111,-150.0,0.00040665,7]
[398164628,1765413048120,-150.0,0.00040676,7]
[398164629,1765413048130,-150.0,0.00040698,7]
[398164630,1765413048139,-1000.0,0.000407,7]
[398164631,1765413048148,-150.0,0.00040702,7]
[398164632,1765413048158,-150.0,0.00040707,7]
[398164633,1765413048167,-2000.0,0.00040711,120]
[398164634,1765413048176,-500.0,0.00040713,14]
[398164635,1765413048186,-150.0,0.00040713,7]
[398164636,1765413048195,-150.0,0.00040757,7]
[398164637,1765413048204,-150.0,0.00040757,7]
[398164638,1765413048214,-8767.8435,0.00040758,2]
[398164639,1765413048224,-150.0,0.00040778,7]
[398164640,1765413048235,-150.0,0.00040784,7]
[398164641,1765413048246,-150.0,0.00040797,7]
[398164642,1765413048255,-150.0,0.00040813,7]
[398164643,1765413048264,-150.0,0.00040833,7]
[398164644,1765413048275,-150.0,0.00040833,7]
[398164645,1765413048284,-150.0,0.00040833,7]
[398164646,1765413048295,-1500.0,0.00040859,2]
[398164647,1765413048304,-1500.0,0.00040859,2]
[398164648,1765413048314,-1500.0,0.00040859,2]
[398164649,1765413048324,-1500.0,0.00040859,2]
[398164650,1765413048335,-150.0,0.00040861,7]
[398164651,1765413048345,-150.0,0.00040868,7]
[398164652,1765413048355,-150.0,0.00040879,7]
[398164653,1765413048365,-271.87152765,0.00040883,2]
[398164654,1765413048374,-1000.0,0.0004089,2]
[398164655,1765413048385,-150.0,0.00040896,7]
[398164656,1765413048395,-150.0,0.00040896,7]
[398164657,1765413048404,-150.0,0.00040896,7]
[398164658,1765413048414,-150.0,0.00040918,7]
[398164659,1765413048423,-150.0,0.00040924,7]
[398164660,1765413048432,-1820.0,0.00040927,2]
[398164661,1765413048442,-150.0,0.00040932,7]
[398164662,1765413048452,-150.0,0.00040959,7]
[398164663,1765413048461,-150.0,0.00040965,7]
[398164664,1765413048471,-300.0,0.00040979,10]
[398164665,1765413048482,-300.0,0.00040979,10]
[398164666,1765413048492,-300.0,0.00040979,10]
[398164667,1765413048502,-150.0,0.00040979,7]
[398164668,1765413048511,-47995.3715189,0.0004098,120]
[398164669,1765413048521,-150.0,0.0004098,7]
[398164670,1765413048531,-150.0,0.00040995,7]
[398164671,1765413048541,-193.1,0.00041,14]
[398164672,1765413048551,-150.0,0.00041022,7]
[398164673,1765413048561,-150.0,0.00041035,7]
[398164674,1765413048570,-413.84,0.00041035,14]
[398164675,1765413048582,-150.0,0.00041052,7]
[398164676,1765413048591,-150.0,0.00041069,7]
[398164677,1765413048601,-150.0,0.00041082,7]
[398164678,1765413048611,-150.0,0.00041085,7]
[398164679,1765413048620,-150.0,0.0004109,7]
[398164680,1765413048630,-300.0,0.00041093,10]
[398164681,1765413048717,-300.0,0.00041093,10]
[398164682,1765413048736,-300.0,0.00041093,10]
[398164683,1765413048746,-150.0,0.00041094,7]
[398164684,1765413048755,-300.0,0.00041094,10]
[398164685,1765413048764,-301.55735151,0.00041094,10]
[398164686,1765413048774,-500.0,0.00041095,120]
[398164687,1765413048783,-500.0,0.00041095,60]
[398164688,1765413048793,-500.0,0.00041095,60]
[398164689,1765413048802,-500.0,0.00041095,60]
[398164690,1765413048812,-500.0,0.00041095,60]
[398164691,1765413048822,-500.0,0.00041095,60]
[398164692,1765413048831,-500.0,0.00041095,60]
[398164693,1765413048841,-500.0,0.00041095,60]
[398164694,1765413048851,-500.0,0.00041095,60]
[398164695,1765413048861,-500.0,0.00041095,60]